[Event "Asian Zonal-ch 3.5 Women 2019"]
[Site "Zi Bo"]
[Date "2019.09.07"]
[Round "4.10"]
[White "Cai Youyang"]
[Black "Zhang, Xiao"]
[Result "0-1"]
[ECO "B12"]
[WhiteElo "1910"]
[BlackElo "2073"]
[Annotator "NA"]
[PlyCount "204"]
[EventDate "2019.09.05"]
[EventType "swiss"]
[EventCountry "CHN"]
[SourceTitle "playchess.com"]
[Source "ChessBase"]
[SourceQuality "1"]
[TimeControl "5400+30"]

1. e4 {[%emt 0:00:02]} c6 {[%emt 0:00:00]} 2. d4 {[%emt 0:00:05]} d5 {[%emt 0:00:01]} 3. f3 {[%emt 0:00:05]} e6 {[%emt 0:00:59]} 4. Nc3 {[%emt 0:00:18]} Nf6 {[%emt 0:00:31]} 5. Be3 {[%emt 0:04:23]} Bb4 {[%emt 0:00:06]} 6. e5 {[%emt 0:07:42]} Nfd7 {[%emt 0:00:50]} 7. a3 {[%emt 0:00:13]} Bxc3+ {[%emt 0:01:30]} 8. bxc3 {[%emt 0:00:05]} b6 {[%emt 0:05:13]} 9. h4 {[%emt 0:04:50]} Ba6 {[%emt 0:00:46]} 10. Bxa6 {[%emt 0:02:26]} Nxa6 {[%emt 0:00:02]} 11. h5 {[%emt 0:00:11]} c5 {[%emt 0:05:34]} 12. Qd2 {[%emt 0:03:12]} Qc7 {[%emt 0:01:25]} 13. Ne2 {[%emt 0:01:18]} Rc8 {[%emt 0:06:04]} 14. O-O {[%emt 0:08:58]} cxd4 {[%emt 0:09:42]} 15. cxd4 {[%emt 0:00:34]} Qxc2 {[%emt 0:01:11]} 16. Qe1 {[%emt 0:00:04]} O-O {[%emt 0:00:23]} 17. f4 {[%emt 0:05:41]} Qf5 {[%emt 0:05:07]} 18. Ng3 {[%emt 0:00:58]} Qd3 {[%emt 0:03:01]} 19. Rd1 {[%emt 0:03:44]} Qxa3 {[%emt 0:04:19]} 20. Rf3 {[%emt 0:00:25]} Qc3 {[%emt 0:04:53]} 21. Qf2 {[%emt 0:01:36]} f5 {[%emt 0:00:54]} 22. h6 {[%emt 0:03:43]} g6 {[%emt 0:00:44]} 23. Nh5 {[%emt 0:00:45]} Qc2 {[%emt 0:05:07]} 24. Rd2 {[%emt 0:00:03]} Qb1+ {[%emt 0:00:23]} 25. Kh2 {[%emt 0:00:02]} Kf7 {[%emt 0:07:44]} 26. Rb2 {[%emt 0:00:15]} Qd3 {[%emt 0:03:29]} 27. Qh4 {[%emt 0:01:08]} Qa3 {[%emt 0:06:11]} 28. Rb1 {[%emt 0:06:39]} Qe7 {[%emt 0:00:14]} 29. Qh3 {[%emt 0:00:07]} Rg8 {[%emt 0:02:26]} 30. Ng7 {[%emt 0:00:14]} Nc7 {[%emt 0:06:03]} 31. g4 {[%emt 0:01:51]} Ne8 {[%emt 0:00:14]} 32. gxf5 {[%emt 0:00:51]} Nxg7 {[%emt 0:00:39]} 33. fxg6+ {[%emt 0:06:29]} hxg6 {[%emt 0:00:26]} 34. hxg7 {[%emt 0:00:03]} Rxg7 {[%emt 0:01:35]} 35. Bf2 {[%emt 0:00:31]} Kg8 {[%emt 0:00:37]} 36. Bh4 {[%emt 0:00:03]} Qf7 {[%emt 0:00:15]} 37. Rg1 {[%emt 0:00:39]} Qf5 {[%emt 0:00:40]} 38. Qg3 {[%emt 0:00:35]} a5 {[%emt 0:01:04]} 39. Qe1 {[%emt 0:01:04]} Rc4 {[%emt 0:00:58]} 40. Qd1 {[%emt 0:02:15]} Qc2+ {[%emt 0:00:20]} 41. Qxc2 {[%emt 0:00:05]} Rxc2+ {[%emt 0:00:04]} 42. Kh3 {[%emt 0:00:03]} Rc4 {[%emt 0:01:19]} 43. Rd1 {[%emt 0:00:46]} a4 {[%emt 0:01:18]} 44. Kg4 {[%emt 0:01:00]} Nf8 {[%emt 0:00:32]} 45. Bf6 {[%emt 0:00:41]} Rh7 {[%emt 0:02:08]} 46. Rb1 {[%emt 0:00:24]} Nd7 {[%emt 0:00:54]} 47. Bd8 {[%emt 0:00:06]} Rxd4 {[%emt 0:01:22]} 48. Kg3 {[%emt 0:00:07]} Rg7 {[%emt 0:07:52]} 49. Bxb6 {[%emt 0:00:11]} Nxb6 {[%emt 0:00:38]} 50. Rxb6 {[%emt 0:00:02]} Re7 {[%emt 0:00:56]} 51. Kg4 {[%emt 0:00:22]} Kg7 {[%emt 0:01:14]} 52. Kg5 {[%emt 0:00:30]} Rd1 {[%emt 0:00:55]} 53. Ra6 {[%emt 0:01:02]} Ra1 {[%emt 0:00:34]} 54. Kg4 {[%emt 0:00:32]} Kf7 {[%emt 0:01:46]} 55. Rh3 {[%emt 0:00:14]} Kg7 {[%emt 0:00:21]} 56. Rf3 {[%emt 0:00:03]} Rg1+ {[%emt 0:00:34]} 57. Kh4 {[%emt 0:01:04]} Kh6 {[%emt 0:01:55]} 58. Rg3 {[%emt 0:02:47]} Rxg3 {[%emt 0:01:27]} 59. Kxg3 {[%emt 0:00:02]} g5 {[%emt 0:01:23]} 60. f5 {[%emt 0:00:09]} Kh5 {[%emt 0:00:34]} 61. f6 {[%emt 0:02:52]} Re8 {[%emt 0:00:13]} 62. Rxa4 {[%emt 0:00:11]} Kg6 {[%emt 0:00:08]} 63. Kg4 {[%emt 0:00:10]} Rh8 {[%emt 0:00:11]} 64. Ra7 {[%emt 0:02:55]} Rh4+ {[%emt 0:00:04]} 65. Kg3 {[%emt 0:00:01]} Kf5 {[%emt 0:01:00]} 66. Ra8 {[%emt 0:01:57]} Rh7 {[%emt 0:00:37]} 67. Rf8 {[%emt 0:00:11]} d4 {[%emt 0:01:05]} 68. f7 {[%emt 0:00:32]} Kxe5 {[%emt 0:00:23]} 69. Kg4 {[%emt 0:00:01]} Kf6 {[%emt 0:00:15]} 70. Rd8 {[%emt 0:01:06]} Rxf7 {[%emt 0:00:05]} 71. Rxd4 {[%emt 0:00:03]} Rh7 {[%emt 0:00:06]} 72. Rd8 {[%emt 0:00:17]} Rh4+ {[%emt 0:00:24]} 73. Kg3 {[%emt 0:00:03]} Ra4 {[%emt 0:00:36]} 74. Rf8+ {[%emt 0:00:06]} Kg7 {[%emt 0:00:22]} 75. Re8 {[%emt 0:00:05]} Kf7 {[%emt 0:00:03]} 76. Rb8 {[%emt 0:00:03]} e5 {[%emt 0:00:27]} 77. Rb6 {[%emt 0:00:01]} Rf4 {[%emt 0:00:22]} 78. Ra6 {[%emt 0:00:11]} Rf6 {[%emt 0:00:08]} 79. Ra7+ {[%emt 0:00:01]} Kg6 {[%emt 0:00:08]} 80. Re7 {[%emt 0:00:14]} Kf5 {[%emt 0:00:24]} 81. Re8 {[%emt 0:00:27]} e4 {[%emt 0:00:32]} 82. Re7 {[%emt 0:00:08]} Re6 {[%emt 0:00:21]} 83. Rf7+ {[%emt 0:00:02]} Ke5 {[%emt 0:00:53]} 84. Kg4 {[%emt 0:00:40]} e3 {[%emt 0:00:24]} 85. Kf3 {[%emt 0:00:01]} Kd6 {[%emt 0:00:50]} 86. Ke2 {[%emt 0:00:01]} Re4 {[%emt 0:02:16]} 87. Rf3 {[%emt 0:00:04]} Ke5 {[%emt 0:00:05]} 88. Rf8 {[%emt 0:01:18]} g4 {[%emt 0:00:27]} 89. Rf7 {[%emt 0:02:54]} Ke6 {[%emt 0:01:13]} 90. Rf8 {[%emt 0:00:11]} Ke7 {[%emt 0:00:28]} 91. Rf5 {[%emt 0:00:05]} Kd6 {[%emt 0:00:25]} 92. Rf8 {[%emt 0:00:29]} Kd5 {[%emt 0:00:30]} 93. Rf7 {[%emt 0:00:29]} Ke5 {[%emt 0:00:52]} 94. Rf8 {[%emt 0:00:05]} g3 {[%emt 0:00:40]} 95. Rf3 {[%emt 0:06:57]} g2 {[%emt 0:00:22]} 96. Rg3 {[%emt 0:00:02]} Rb4 {[%emt 0:00:33]} 97. Kf3 {[%emt 0:11:06]} Rb2 {[%emt 0:00:25]} 98. Rg4 {[%emt 0:00:16]} e2 {[%emt 0:00:22]} 99. Rg8 {[%emt 0:00:01]} Kd4 {[%emt 0:00:32]} 100. Rd8+ {[%emt 0:03:38]} Kc3 {[%emt 0:00:09]} 101. Rc8+ {[%emt 0:00:04]} Kd2 {[%emt 0:00:16]} 102. Rd8+ {[%emt 0:00:10]} Kc1 {[%emt 0:00:13]} 0-1

[Event "Asian Zonal-ch 3.5 Women 2019"]
[Site "Zi Bo"]
[Date "2019.09.07"]
[Round "4.11"]
[White "Wang, Yuehan"]
[Black "Xue, Yue"]
[Result "1-0"]
[ECO "B80"]
[WhiteElo "1600"]
[BlackElo "1678"]
[Annotator "NA"]
[PlyCount "47"]
[EventDate "2019.09.05"]
[EventType "swiss"]
[EventCountry "CHN"]
[SourceTitle "playchess.com"]
[Source "ChessBase"]
[SourceQuality "1"]
[TimeControl "5400+30"]

1. e4 {[%emt 0:00:00]} c5 {[%emt 0:00:00]} 2. Nf3 {[%emt 0:00:00]} d6 {[%emt 0:00:00]} 3. d4 {[%emt 0:00:00]} cxd4 {[%emt 0:00:00]} 4. Nxd4 {[%emt 0:00:00]} Nf6 {[%emt 0:00:00]} 5. Nc3 {[%emt 0:00:00]} Nc6 {[%emt 0:00:00]} 6. f3 {[%emt 0:00:00]} e6 {[%emt 0:02:08]} 7. Be3 {[%emt 0:00:09]} a6 {[%emt 0:00:30]} 8. Qd2 {[%emt 0:00:13]} Qc7 {[%emt 0:01:28]} 9. O-O-O {[%emt 0:00:42]} Be7 {[%emt 0:04:17]} 10. Kb1 {[%emt 0:00:40]} Ne5 {[%emt 0:01:35]} 11. g4 {[%emt 0:01:27]} Nc4 {[%emt 0:09:35]} 12. Bxc4 {[%emt 0:00:48]} Qxc4 {[%emt 0:00:02]} 13. g5 {[%emt 0:01:53]} Nd7 {[%emt 0:00:02]} 14. h4 {[%emt 0:02:19]} Rb8 {[%emt 0:08:14]} 15. h5 {[%emt 0:02:55]} b5 {[%emt 0:07:24]} 16. b3 {[%emt 0:04:27]} Qc7 {[%emt 0:00:31]} 17. g6 {[%emt 0:00:14]} Bf6 {[%emt 0:11:12]} 18. gxf7+ {[%emt 0:02:47]} Kxf7 {[%emt 0:00:03]} 19. Nce2 {[%emt 0:05:37]} Ne5 {[%emt 0:01:47]} 20. Bg5 {[%emt 0:00:43]} Nc4 {[%emt 0:07:29]} 21. bxc4 {[%emt 0:11:30]} bxc4+ {[%emt 0:00:05]} 22. Ka1 {[%emt 0:02:35]} c3 {[%emt 0:01:51]} 23. Qc1 {[%emt 0:04:38]} Bxg5 {[%emt 0:03:55]} 24. Qxg5 {[%emt 0:00:11]} 1-0

[Event "Asian Zonal-ch 3.5 Women 2019"]
[Site "Zi Bo"]
[Date "2019.09.07"]
[Round "4.12"]
[White "Ha, Yihan"]
[Black "Zhao, Caidi"]
[Result "1-0"]
[ECO "D70"]
[WhiteElo "1580"]
[BlackElo "1540"]
[Annotator "NA"]
[PlyCount "107"]
[EventDate "2019.09.05"]
[EventType "swiss"]
[EventCountry "CHN"]
[SourceTitle "playchess.com"]
[Source "ChessBase"]
[SourceQuality "1"]
[TimeControl "5400+30"]

1. d4 {[%emt 0:00:00]} Nf6 {[%emt 0:00:00]} 2. c4 {[%emt 0:00:00]} g6 {[%emt 0:00:00]} 3. f3 {[%emt 0:00:00]} d5 {[%emt 0:00:00]} 4. cxd5 {[%emt 0:00:02]} Nxd5 {[%emt 0:00:01]} 5. e4 {[%emt 0:00:07]} Nb6 {[%emt 0:00:04]} 6. Nc3 {[%emt 0:00:07]} Bg7 {[%emt 0:00:19]} 7. Be3 {[%emt 0:00:10]} Nc6 {[%emt 0:00:53]} 8. Bb5 {[%emt 0:00:15]} O-O {[%emt 0:00:43]} 9. Nge2 {[%emt 0:00:50]} Bd7 {[%emt 0:01:19]} 10. Rc1 {[%emt 0:11:52]} a6 {[%emt 0:02:14]} 11. Bd3 {[%emt 0:02:04]} Nb4 {[%emt 0:06:47]} 12. g4 {[%emt 0:18:04]} Be6 {[%emt 0:11:49]} 13. b3 {[%emt 0:00:00]} Bxd4 {[%emt 0:12:32]} 14. Nxd4 {[%emt 0:00:49]} c5 {[%emt 0:05:08]} 15. Bb1 {[%emt 0:04:47]} cxd4 {[%emt 0:02:32]} 16. Bxd4 {[%emt 0:05:15]} Nc6 {[%emt 0:02:33]} 17. Be3 {[%emt 0:00:33]} Qxd1+ {[%emt 0:01:59]} 18. Rxd1 {[%emt 0:01:05]} Nd7 {[%emt 0:00:52]} 19. Kf2 {[%emt 0:01:27]} Rfd8 {[%emt 0:03:28]} 20. h3 {[%emt 0:05:08]} f6 {[%emt 0:04:36]} 21. f4 {[%emt 0:01:04]} Bf7 {[%emt 0:01:14]} 22. h4 {[%emt 0:03:17]} Nf8 {[%emt 0:03:55]} 23. Na4 {[%emt 0:06:24]} Nd7 {[%emt 0:06:15]} 24. h5 {[%emt 0:01:06]} e5 {[%emt 0:04:54]} 25. hxg6 {[%emt 0:00:42]} hxg6 {[%emt 0:00:18]} 26. f5 {[%emt 0:00:48]} g5 {[%emt 0:01:26]} 27. Rd6 {[%emt 0:01:28]} Kg7 {[%emt 0:03:25]} 28. Rhd1 {[%emt 0:00:37]} Be8 {[%emt 0:02:07]} 29. a3 {[%emt 0:15:33]} Nf8 {[%emt 0:05:08]} 30. Bb6 {[%emt 0:04:18]} Rxd6 {[%emt 0:01:20]} 31. Rxd6 {[%emt 0:00:02]} Nd7 {[%emt 0:01:05]} 32. Be3 {[%emt 0:00:42]} Na5 {[%emt 0:02:28]} 33. Ba2 {[%emt 0:02:20]} Rc8 {[%emt 0:01:04]} 34. Rd2 {[%emt 0:00:34]} Rc6 {[%emt 0:01:26]} 35. Nb2 {[%emt 0:01:49]} Rc3 {[%emt 0:01:51]} 36. b4 {[%emt 0:01:27]} Nc6 {[%emt 0:01:37]} 37. Nc4 {[%emt 0:01:58]} Ndb8 {[%emt 0:02:01]} 38. Nd6 {[%emt 0:02:35]} Bd7 {[%emt 0:00:08]} 39. Nxb7 {[%emt 0:00:45]} Rxa3 {[%emt 0:00:11]} 40. Bc5 {[%emt 0:01:00]} Rc3 {[%emt 0:00:50]} 41. Bd5 {[%emt 0:00:30]} Rc1 {[%emt 0:01:51]} 42. Bd6 {[%emt 0:00:59]} Rb1 {[%emt 0:01:00]} 43. Nc5 {[%emt 0:01:05]} Be8 {[%emt 0:00:48]} 44. Ne6+ {[%emt 0:00:17]} Kh8 {[%emt 0:00:46]} 45. Ba2 {[%emt 0:00:42]} Rc1 {[%emt 0:00:52]} 46. Bxb8 {[%emt 0:00:49]} Nxb8 {[%emt 0:00:04]} 47. Rd8 {[%emt 0:00:09]} Rc2+ {[%emt 0:02:32]} 48. Ke3 {[%emt 0:00:17]} Nc6 {[%emt 0:00:46]} 49. Rxe8+ {[%emt 0:00:09]} Kh7 {[%emt 0:00:05]} 50. Bd5 {[%emt 0:01:08]} Nxb4 {[%emt 0:00:23]} 51. Re7+ {[%emt 0:00:40]} Kh8 {[%emt 0:00:34]} 52. Rf7 {[%emt 0:02:22]} Rc3+ {[%emt 0:01:35]} 53. Kd2 {[%emt 0:00:47]} Rd3+ {[%emt 0:00:47]} 54. Ke2 {[%emt 0:00:20]} 1-0